fUSD/lending_fUSD_20241227
["ID","MTS","AMOUNT","RATE_DAILY","PERIOD"]
[346864989,1735333849452,-538.09,0.00010741,2]
[346864990,1735333849462,-500.0,0.00010741,2]
[346864991,1735333849471,-500.0,0.00010741,2]
[346864992,1735333849481,-964.14,0.00010741,2]
[346864993,1735333849491,-520.39,0.00010741,2]
[346864994,1735333849500,-6684.03,0.00010741,2]
[346864995,1735333849510,-500.0,0.00010741,2]
[346864996,1735333849519,-754.23,0.00010741,2]
[346864997,1735333849529,-752.37,0.00010741,2]
[346864998,1735333849539,-968.17,0.00010741,2]
[346864999,1735333849548,-500.0,0.00010741,2]
[346865000,1735333849558,-500.0,0.00010741,2]
[346865001,1735333849567,-638.49,0.00010741,2]
[346865002,1735333849577,-9261.0,0.00010741,2]
[346865003,1735333849586,-1458.49,0.00010741,2]
[346865004,1735333849596,-500.0,0.00010741,2]
[346865005,1735333849606,-500.0,0.00010741,2]
[346865007,1735333849615,-500.0,0.00010741,2]
[346865008,1735333849624,-820.57,0.00010741,2]
[346865009,1735333849633,-500.0,0.00010741,2]
[346865011,1735333849642,-618.48,0.00010741,2]
[346865012,1735333849651,-637.5,0.00010741,2]
[346865013,1735333849661,-500.0,0.00010741,2]
[346865014,1735333849671,-500.0,0.00010741,2]
[346865015,1735333849680,-593.92,0.00010741,2]
[346865016,1735333849690,-1240.95,0.00010741,2]
[346865017,1735333849700,-500.0,0.00010741,2]
[346865018,1735333849709,-2126.31,0.00010741,2]
[346865020,1735333849719,-1576.29,0.00010741,2]
[346865021,1735333849728,-654.58,0.00010741,2]
[346865022,1735333849738,-500.0,0.00010741,2]
[346865023,1735333849747,-500.0,0.00010741,2]
[346865024,1735333849757,-626.92,0.00010741,2]
[346865025,1735333849767,-1443.29,0.00010741,2]
[346865026,1735333849776,-645.12,0.00010741,2]
[346865027,1735333849785,-1912.68,0.00010741,2]
[346865028,1735333849795,-500.0,0.00010741,2]
[346865029,1735333849804,-500.0,0.00010741,2]
[346865030,1735333849814,-1047.27,0.00010741,2]
[346865031,1735333849823,-860.28,0.00010741,2]
[346865032,1735333849833,-1313.64,0.00010741,2]
[346865033,1735333849842,-639.33,0.00010741,2]
[346865034,1735333849851,-1040.6,0.00010741,2]
[346865035,1735333849861,-500.0,0.00010741,2]
[346865036,1735333849870,-500.0,0.00010741,2]
[346865037,1735333849880,-2069.87,0.00010741,2]
[346865038,1735333849889,-1715.23,0.00010741,2]
[346865039,1735333849899,-500.0,0.00010741,2]
[346865040,1735333849911,-668.27,0.00010741,2]
[346865041,1735333849920,-500.0,0.00010741,2]
[346865042,1735333849929,-500.0,0.00010741,2]
[346865043,1735333849938,-500.0,0.00010741,2]
[346865045,1735333849947,-594.45,0.00010741,2]
[346865046,1735333849956,-572.29,0.00010741,2]
[346865047,1735333849966,-696.98,0.00010741,2]
[346865048,1735333849975,-958.75,0.00010741,2]
[346865049,1735333849984,-557.12,0.00010741,2]
[346865050,1735333849994,-500.0,0.00010741,2]
[346865051,1735333850003,-3289.37,0.00010741,2]
[346865052,1735333850012,-500.0,0.00010741,2]
[346865053,1735333850021,-500.0,0.00010741,2]
[346865054,1735333850031,-500.0,0.00010741,2]
[346865055,1735333850040,-1381.48,0.00010741,2]
[346865056,1735333850050,-500.0,0.00010741,2]
[346865057,1735333850059,-500.0,0.00010741,2]
[346865058,1735333850068,-1819.16,0.00010741,2]
[346865060,1735333850079,-500.0,0.00010741,2]
[346865061,1735333850088,-1798.73,0.00010741,2]
[346865062,1735333850100,-690.69,0.00010741,2]
[346865063,1735333850109,-500.0,0.00010741,2]
[346865064,1735333850119,-956.87,0.00010741,2]
[346865065,1735333850128,-1927.16,0.00010741,2]
[346865066,1735333850137,-500.0,0.00010741,2]
[346865067,1735333850146,-3187.13,0.00010741,2]
[346865068,1735333850156,-1016.33,0.00010741,2]
[346865069,1735333850165,-500.0,0.00010741,2]
[346865070,1735333850174,-711.29,0.00010741,2]
[346865071,1735333850184,-1618.5,0.00010741,2]
[346865072,1735333850193,-1757.99,0.00010741,2]
[346865073,1735333850208,-1209.0,0.00010742,2]
[346865074,1735333850217,-5880.02,0.00010743,2]
[346865075,1735333850226,-21208.27286206,0.00010743,2]
[346865076,1735333850249,-1920.55029064,0.00010743,2]
[346865077,1735333850261,-4266.7068473,0.00010743,2]
[346865078,1735333850270,-3648.82,0.00010743,2]
[346865079,1735333850281,-1923.34,0.00010743,2]
[346865080,1735333850290,-500.0,0.00010743,2]
[346865081,1735333850299,-1767.61,0.00010743,2]
[346865082,1735333850308,-2934.07,0.00010743,2]
[346865083,1735333850318,-500.0,0.00010743,2]
[346865084,1735333850331,-20958.94,0.00010743,2]
[346865085,1735333850341,-844.32,0.00010743,2]
[346865086,1735333850351,-3500.23,0.00010743,2]
[346865087,1735333850361,-267.6749923,0.00010743,2]
[346865088,1735333850370,-2232.11,0.00010743,2]
[346865089,1735333850380,-1580.08,0.00010743,2]
[346865090,1735333850389,-1191.32,0.00010743,2]
[346865091,1735333850398,-4379.48,0.00010743,2]
[346865092,1735333850408,-2001.74,0.00010743,2]
[346865093,1735333850417,-4181.39,0.00010743,2]
[346865094,1735333850427,-1913.9,0.00010743,2]
[346865095,1735333850436,-700.5,0.00010743,2]
[346865096,1735333850446,-2465.58,0.00010743,2]
[346865097,1735333850455,-1460.96,0.00010743,2]
[346865098,1735333850464,-2801.58,0.00010743,2]
[346865099,1735333850474,-1442.83,0.00010743,2]
[346865100,1735333850484,-4417.59,0.00010743,2]
[346865101,1735333850497,-1647.04,0.00010743,2]
[346865102,1735333850512,-500.0,0.00010773,2]
[346865103,1735333850527,-231.5481603,0.00010773,2]
[346865104,1735333850555,-268.4518397,0.00010773,2]
[346865105,1735333850570,-103.34916,0.00010773,2]
[346865106,1735333850589,-97.26277778,0.00010773,2]
[346865107,1735333850602,-500.0,0.00010773,2]
[346865108,1735333850616,-161.49394547,0.00010773,2]
[346865109,1735333850629,-500.0,0.00010773,2]
[346865110,1735333850642,-165.59040262,0.00010773,2]
[346865111,1735333850655,-471.09739856,0.00010773,2]
[346865112,1735333850667,-500.0,0.00010773,2]
[346865113,1735333850679,-164.17114807,0.00010773,2]
[346865114,1735333850690,-159.82395346,0.00010773,2]
[346865115,1735333850703,-260.19736061,0.00010773,2]
[346865116,1735333850715,-509.60178299,0.00010773,2]
[346865117,1735333850728,-500.0,0.00010773,2]
[346865118,1735333850741,-161.96474673,0.00010773,2]
[346865119,1735333850753,-548.2472724,0.000108,3]
[346865120,1735333850771,-2151.7527276,0.000108,3]
[346865121,1735333850783,-491.12402083,0.00010829,2]
[346865122,1735333850798,-774.87597917,0.00010829,2]
[346865123,1735333850810,-197.30943083,0.00010829,2]
[346865124,1735333850826,-1814.69056917,0.00010829,2]
[346865125,1735333850839,-633.0,0.00010829,2]
[346865126,1735333850851,-565.0,0.00010829,2]
[346865127,1735333850864,-150.0,0.00010829,2]
[346865128,1735333850875,-616.30943083,0.00010876,2]
[346865129,1735333850891,-183.69056917,0.00010876,2]
[346865130,1735333850903,-1876.30943083,0.00010876,2]
[346865131,1735333850929,-223.69056917,0.00010876,2]
[346865132,1735333850941,-3600.0,0.000109,3]
[346865133,1735333850952,-429.20526385,0.00010901,2]
[346865134,1735333850963,-500.0,0.0001091,2]
[346865135,1735333850975,-260.0,0.0001093,2]
[346865136,1735333850989,-500.0,0.00010957,2]
[346865137,1735333851003,-7500.0,0.00010958,2]
[346865138,1735333851013,-7500.0,0.00010958,2]
[346865139,1735333851024,-3867.64807043,0.00010958,2]
[346865140,1735333851037,-3632.35192957,0.00010958,2]
[346865141,1735333851050,-7177.23595197,0.00010958,2]
[346865142,1735333851064,-150.0,0.00010959,2]
[346865143,1735333851077,-151.0,0.00010959,2]
[346865144,1735333851088,-151.0,0.00010959,2]
[346865145,1735333851098,-151.0,0.00010959,2]
[346865146,1735333851109,-4810.0,0.00010986,2]
[346865147,1735333851123,-8900.45842836,0.00011,2]
[346865148,1735333851138,-41099.54157164,0.00011,2]
[346865149,1735333851149,-439.509,0.00011,2]
[346865150,1735333851161,-500.0,0.00011013,2]
[346865151,1735333851172,-737.06,0.00011013,2]
[346865152,1735333851183,-574.0,0.00011013,2]
[346865153,1735333851195,-7363.4,0.00011013,2]
[346865154,1735333851210,-1935.74,0.00011013,2]
[346865155,1735333851222,-1145.75,0.00011013,2]
[346865156,1735333851234,-2179.67,0.00011013,2]
[346865157,1735333851247,-1382.52,0.00011013,2]
[346865158,1735333851263,-2744.35,0.00011013,2]
[346865159,1735333851278,-961.01,0.00011013,2]
[346865160,1735333851297,-500.0,0.00011013,2]
[346865161,1735333851308,-500.0,0.00011013,2]
[346865162,1735333851319,-949.47,0.00011013,2]
[346865163,1735333851331,-500.0,0.00011013,2]
[346865164,1735333851343,-902.5,0.00011013,2]
[346865165,1735333851355,-760.49,0.00011013,2]
[346865166,1735333851367,-580.5,0.00011013,2]
[346865167,1735333851379,-500.0,0.00011013,2]
[346865168,1735333851390,-399.40695483,0.00011013,2]
[346865169,1735333851402,-816.57,0.00011013,2]
[346865170,1735333851414,-554.74,0.00011013,2]
[346865171,1735333851425,-226.35,0.00011014,2]
[346865172,1735333851437,-500.0,0.00011014,2]
[346865173,1735333851448,-500.0,0.00011014,2]
[346865174,1735333851460,-1218.55,0.00011014,2]
[346865175,1735333851471,-909.5,0.00011014,2]
[346865176,1735333851482,-500.0,0.00011014,2]
[346865177,1735333851493,-558.54,0.00011014,2]
[346865178,1735333851505,-319.78,0.00011014,2]
[346865179,1735333851516,-500.0,0.00011014,2]
[346865180,1735333851527,-1118.77,0.00011014,2]
[346865181,1735333851539,-500.0,0.00011014,2]
[346865182,1735333851550,-535.83,0.00011014,2]
[346865183,1735333851561,-751.2,0.00011014,2]
[346865184,1735333851572,-500.0,0.00011014,2]
[346865185,1735333851586,-915.91,0.00011014,2]
[346865186,1735333851598,-500.0,0.00011014,2]
[346865187,1735333851609,-500.0,0.00011014,2]
[346865188,1735333851621,-569.17,0.00011014,2]
[346865189,1735333851632,-684.14,0.00011014,2]
[346865190,1735333851645,-542.62,0.00011014,2]
[346865191,1735333851657,-736.87,0.00011014,2]
[346865192,1735333851668,-642.26,0.00011014,2]
[346865193,1735333851680,-500.0,0.00011014,2]
[346865194,1735333851691,-500.0,0.00011014,2]
[346865195,1735333851703,-625.49,0.00011014,2]
[346865196,1735333851714,-659.58,0.00011014,2]
[346865197,1735333851726,-631.0,0.00011014,2]
[346865198,1735333851737,-500.0,0.00011014,2]
[346865199,1735333851749,-770.59,0.00011014,2]
[346865200,1735333851760,-500.0,0.00011014,2]
[346865201,1735333851772,-562.42,0.00011014,2]
[346865202,1735333851784,-558.09,0.00011014,2]
[346865203,1735333851796,-500.0,0.00011014,2]
[346865204,1735333851807,-679.43,0.00011014,2]
[346865205,1735333851819,-540.35,0.00011014,2]
[346865206,1735333851831,-566.52,0.00011014,2]
[346865207,1735333851843,-500.0,0.00011014,2]
[346865208,1735333851854,-711.97,0.00011014,2]
[346865209,1735333851865,-569.6,0.00011014,2]
[346865210,1735333851877,-500.0,0.00011014,2]
[346865211,1735333851888,-1090.79,0.00011014,2]
[346865212,1735333851899,-500.0,0.00011014,2]
[346865213,1735333851911,-500.0,0.00011014,2]
[346865214,1735333851922,-500.0,0.00011014,2]
[346865215,1735333851934,-602.32,0.00011014,2]
[346865216,1735333851947,-564.93,0.00011014,2]
[346865217,1735333851967,-500.0,0.00011014,2]
[346865218,1735333851979,-636.24,0.00011014,2]
[346865219,1735333851990,-500.0,0.00011014,2]
[346865220,1735333852002,-717.7,0.00011014,2]
[346865221,1735333852013,-500.0,0.00011014,2]
[346865223,1735333852024,-853.84,0.00011014,2]
[346865224,1735333852035,-500.0,0.00011014,2]
[346865225,1735333852046,-500.0,0.00011014,2]
[346865226,1735333852057,-500.0,0.00011014,2]
[346865227,1735333852069,-560.55,0.00011014,2]
[346865228,1735333852081,-500.0,0.00011014,2]
[346865229,1735333852092,-746.65,0.00011014,2]
[346865230,1735333852103,-500.0,0.00011014,2]
[346865231,1735333852115,-912.06,0.00011014,2]
[346865232,1735333852126,-529.75,0.00011014,2]
[346865233,1735333852137,-538.02,0.00011014,2]
[346865234,1735333852148,-500.0,0.00011014,2]
[346865235,1735333852159,-576.79,0.00011014,2]
[346865236,1735333852171,-500.0,0.00011014,2]
[346865237,1735333852182,-612.72,0.00011014,2]
[346865238,1735333852194,-500.0,0.00011014,2]
[346865239,1735333852209,-337.62,0.00011014,2]
[346865240,1735333852221,-589.04,0.00011014,2]
[346865241,1735333852231,-687.69,0.00011014,2]
[346865242,1735333852244,-500.0,0.00011014,2]
[346865243,1735333852254,-278.05,0.00011014,2]
[346865244,1735333852266,-373.03636434,0.00011014,2]
[346865245,1735333852278,-500.0,0.00011014,2]
[346865246,1735333852290,-654.86,0.00011014,2]
[346865247,1735333852301,-948.79,0.00011014,2]
[346865248,1735333852312,-500.0,0.00011014,2]
[346865249,1735333852324,-296.24,0.00011014,2]
[346865250,1735333852335,-500.0,0.00011014,2]
[346865251,1735333852346,-500.0,0.00011014,2]
[346865252,1735333852358,-604.32,0.00011014,2]
[346865253,1735333852372,-536.49,0.00011014,2]
[346865254,1735333852385,-1285.23,0.00011014,2]
[346865255,1735333852396,-500.0,0.00011014,2]
[346865256,1735333852408,-500.0,0.00011014,2]
[346865257,1735333852419,-671.12,0.00011014,2]
[346865258,1735333852432,-500.0,0.00011014,2]
[346865259,1735333852444,-1077.03,0.00011014,2]
[346865260,1735333852456,-500.0,0.00011014,2]
[346865261,1735333852467,-1073.42,0.00011014,2]
[346865262,1735333852479,-500.0,0.00011014,2]
[346865263,1735333852489,-500.0,0.00011014,2]
[346865264,1735333852501,-500.0,0.00011014,2]
[346865265,1735333852512,-500.0,0.00011014,2]
[346865266,1735333852523,-668.11,0.00011014,2]
[346865267,1735333852534,-866.31,0.00011014,2]
[346865268,1735333852545,-500.0,0.00011014,2]
[346865269,1735333852556,-500.0,0.00011014,2]
[346865270,1735333852567,-500.0,0.00011014,2]
[346865271,1735333852579,-1252.99,0.00011014,2]
[346865272,1735333852589,-685.32,0.00011014,2]
[346865273,1735333852600,-637.59,0.00011014,2]
[346865274,1735333852610,-500.0,0.00011014,2]
[346865275,1735333852621,-652.91,0.00011014,2]
[346865276,1735333852632,-984.68,0.00011014,2]
[346865277,1735333852644,-778.07,0.00011014,2]
[346865278,1735333852656,-947.23,0.00011014,2]
[346865279,1735333852668,-937.08,0.00011014,2]
[346865280,1735333852679,-500.0,0.00011014,2]
[346865281,1735333852690,-500.0,0.00011014,2]
[346865282,1735333852701,-500.0,0.00011014,2]
[346865283,1735333852714,-500.0,0.00011014,2]
[346865284,1735333852725,-525.62,0.00011014,2]
[346865285,1735333852736,-500.0,0.00011014,2]
[346865286,1735333852747,-690.93,0.00011014,2]
[346865287,1735333852757,-861.59,0.00011014,2]
[346865288,1735333852767,-951.41,0.00011014,2]
[346865289,1735333852778,-677.07,0.00011014,2]
[346865290,1735333852788,-500.0,0.00011014,2]
[346865291,1735333852798,-616.17,0.00011014,2]
[346865292,1735333852808,-553.07,0.00011014,2]
[346865293,1735333852818,-885.86,0.00011014,2]
[346865294,1735333852829,-971.07,0.00011014,2]
[346865295,1735333852839,-500.0,0.00011014,2]
[346865296,1735333852848,-500.0,0.00011014,2]
[346865297,1735333852857,-786.07,0.00011014,2]
[346865298,1735333852866,-1320.81,0.00011014,2]
[346865299,1735333852875,-507.43,0.00011014,2]
[346865300,1735333852884,-758.29,0.00011014,2]
[346865301,1735333852894,-500.0,0.00011014,2]
[346865302,1735333852903,-500.0,0.00011014,2]
[346865303,1735333852914,-500.0,0.00011014,2]
[346865304,1735333852925,-595.86,0.00011014,2]
[346865305,1735333852936,-576.77,0.00011014,2]
[346865306,1735333852947,-623.11,0.00011014,2]
[346865307,1735333852958,-1114.6,0.00011014,2]
[346865308,1735333852969,-517.79,0.00011014,2]
[346865309,1735333852979,-599.44,0.00011014,2]
[346865310,1735333852990,-500.0,0.00011014,2]
[346865311,1735333853002,-718.88,0.00011014,2]
[346865312,1735333853012,-528.35168609,0.00011014,2]
[346865313,1735333853023,-500.0,0.00011014,2]
[346865314,1735333853034,-648.43,0.00011014,2]
[346865315,1735333853045,-607.26,0.00011014,2]
[346865316,1735333853056,-1124.7,0.00011014,2]
[346865317,1735333853068,-500.0,0.00011014,2]
[346865318,1735333853079,-500.0,0.00011014,2]
[346865319,1735333853089,-500.0,0.00011014,2]
[346865320,1735333853099,-3070.42,0.00011014,2]
[346865321,1735333853108,-811.03,0.00011014,2]
[346865322,1735333853118,-500.0,0.00011014,2]
[346865323,1735333853127,-500.0,0.00011014,2]
[346865324,1735333853137,-500.0,0.00011014,2]
[346865325,1735333853147,-632.02,0.00011014,2]
[346865326,1735333853156,-935.05,0.00011014,2]
[346865327,1735333853166,-500.0,0.00011014,2]
[346865328,1735333853175,-2736.99,0.00011014,2]
[346865329,1735333853185,-1026.44,0.00011014,2]
[346865330,1735333853194,-663.98,0.00011014,2]
[346865331,1735333853208,-500.0,0.00011014,2]
[346865332,1735333853218,-500.0,0.00011014,2]
[346865333,1735333853228,-1944.05,0.00011014,2]
[346865334,1735333853237,-616.69,0.00011014,2]
[346865335,1735333853247,-747.92,0.00011014,2]
[346865336,1735333853258,-2028.34,0.00011014,2]
[346865337,1735333853268,-500.0,0.00011014,2]
[346865338,1735333853280,-500.0,0.00011014,2]
[346865339,1735333853290,-1190.81,0.00011014,2]
[346865340,1735333853300,-2239.97,0.00011014,2]
[346865341,1735333853311,-829.67,0.00011014,2]
[346865342,1735333853321,-1063.41,0.00011014,2]
[346865343,1735333853331,-530.33,0.00011014,2]
[346865344,1735333853341,-881.97,0.00011014,2]
[346865345,1735333853351,-1298.28,0.00011014,2]
[346865346,1735333853360,-525.86,0.00011014,2]
[346865347,1735333853370,-8748.81,0.00011014,2]
[346865348,1735333853379,-1429.56,0.00011014,2]
[346865349,1735333853390,-500.0,0.00011014,2]
[346865350,1735333853400,-1352.53,0.00011014,2]
[346865351,1735333853409,-500.0,0.00011014,2]
[346865352,1735333853801,-857.26,0.00011014,2]
[346865353,1735333853827,-2217.82,0.00011014,2]
[346865354,1735333853846,-500.0,0.00011014,2]
[346865355,1735333853864,-603.97,0.00011014,2]
[346865356,1735333853874,-15709.35,0.00011014,2]
[346865357,1735333853884,-4548.05,0.00011014,2]
[346865358,1735333853893,-591.79,0.00011014,2]
[346865359,1735333853902,-507.95,0.00011014,2]
[346865360,1735333853911,-500.0,0.00011014,2]
[346865361,1735333853920,-500.0,0.00011014,2]
[346865362,1735333853929,-500.0,0.00011014,2]
[346865363,1735333853938,-719.8,0.00011014,2]
[346865364,1735333853947,-5768.76,0.00011014,2]
[346865365,1735333853957,-2361.39,0.00011014,2]
[346865366,1735333853966,-500.0,0.00011014,2]
[346865367,1735333853975,-500.0,0.00011014,2]
[346865368,1735333853984,-500.0,0.00011014,2]
[346865369,1735333853993,-668.59,0.00011014,2]
[346865370,1735333854002,-757.87,0.00011014,2]
[346865371,1735333854012,-648.48,0.00011014,2]
[346865372,1735333854021,-714.96,0.00011014,2]
[346865374,1735333854030,-858.01,0.00011014,2]
[346865375,1735333854040,-641.35,0.00011014,2]
[346865376,1735333854049,-1372.74,0.00011014,2]
[346865377,1735333854058,-500.0,0.00011014,2]
[346865378,1735333854067,-500.0,0.00011014,2]
[346865379,1735333854076,-2181.08,0.00011014,2]
[346865380,1735333854086,-894.81,0.00011014,2]
[346865381,1735333854095,-500.0,0.00011014,2]
[346865382,1735333854104,-771.22,0.00011014,2]
[346865383,1735333854113,-500.0,0.00011014,2]
[346865384,1735333854122,-1112.44,0.00011014,2]
[346865385,1735333854131,-773.29,0.00011014,2]
[346865386,1735333854140,-787.37,0.00011014,2]
[346865387,1735333854149,-787.83,0.00011014,2]
[346865388,1735333854159,-727.34,0.00011014,2]
[346865389,1735333854168,-3143.51,0.00011014,2]
[346865390,1735333854177,-2359.1,0.00011014,2]
[346865391,1735333854187,-682.48,0.00011014,2]
[346865392,1735333854197,-500.0,0.00011014,2]
[346865393,1735333854209,-1258.73,0.00011014,2]
[346865394,1735333854218,-500.0,0.00011014,2]
[346865395,1735333854228,-585.55,0.00011014,2]
[346865396,1735333854237,-500.0,0.00011014,2]
[346865397,1735333854248,-989.3,0.00011014,2]
[346865398,1735333854257,-1131.57,0.00011014,2]
[346865399,1735333854267,-500.0,0.00011014,2]
[346865400,1735333854276,-5399.73,0.00011014,2]
[346865401,1735333854286,-503.30737878,0.00011014,2]
[346865402,1735333854296,-500.0,0.00011014,2]
[346865403,1735333854305,-2452.09,0.00011014,2]
[346865404,1735333854315,-1415.29,0.00011014,2]
[346865405,1735333854324,-728.4,0.00011014,2]
[346865406,1735333854333,-1093.71,0.00011014,2]
[346865407,1735333854343,-784.92,0.00011014,2]
[346865408,1735333854352,-1253.96,0.00011014,2]
[346865409,1735333854361,-1254.53,0.00011014,2]
[346865410,1735333854371,-701.43,0.00011014,2]
[346865411,1735333854381,-500.0,0.00011014,2]
[346865412,1735333854392,-938.8,0.00011014,2]
[346865413,1735333854402,-500.0,0.00011014,2]
[346865414,1735333854413,-654.84,0.00011014,2]
[346865415,1735333854424,-242.28607943,0.00011014,2]
[346865416,1735333854434,-652.08,0.00011014,2]
[346865417,1735333854443,-500.0,0.00011014,2]
[346865418,1735333854454,-705.42,0.00011014,2]
[346865419,1735333854464,-948.15,0.00011014,2]
[346865420,1735333854473,-500.0,0.00011014,2]
[346865421,1735333854483,-1383.1,0.00011014,2]
[346865422,1735333854492,-737.92,0.00011014,2]
[346865423,1735333854502,-1370.2,0.00011014,2]
[346865424,1735333854511,-684.42,0.00011014,2]
[346865425,1735333854520,-13110.98,0.00011014,2]
[346865426,1735333854530,-899.1,0.00011014,2]
[346865427,1735333854539,-532.82,0.00011014,2]
[346865428,1735333854548,-648.55,0.00011014,2]
[346865429,1735333854557,-779.98,0.00011014,2]
[346865430,1735333854566,-1420.37,0.00011014,2]
[346865431,1735333854575,-500.0,0.00011014,2]
[346865432,1735333854586,-518.53845437,0.00011014,2]
[346865433,1735333854595,-654.16,0.00011014,2]
[346865434,1735333854604,-585.3,0.00011014,2]
[346865435,1735333854613,-825.73,0.00011014,2]
[346865436,1735333854623,-546.45,0.00011015,2]
[346865437,1735333854633,-500.0,0.00011015,2]
[346865438,1735333854642,-695.62,0.00011015,2]
[346865439,1735333854652,-500.0,0.00011015,2]
[346865440,1735333854661,-500.0,0.00011015,2]
[346865441,1735333854671,-500.0,0.00011015,2]
[346865442,1735333854680,-500.0,0.00011015,2]
[346865443,1735333854689,-500.0,0.00011015,2]
[346865444,1735333854699,-500.0,0.00011015,2]
[346865445,1735333854707,-162.06189872,0.00011015,2]
[346865446,1735333854717,-500.0,0.00011015,2]
[346865447,1735333854726,-500.0,0.00011015,2]
[346865448,1735333854735,-590.66,0.00011015,2]
[346865450,1735333854744,-837.83,0.00011015,2]
[346865451,1735333854753,-500.0,0.00011015,2]
[346865452,1735333854762,-501.65,0.00011015,2]
[346865453,1735333854771,-540.22,0.00011015,2]
[346865454,1735333854780,-501.06,0.00011015,2]
[346865455,1735333854789,-500.0,0.00011015,2]
[346865456,1735333854798,-355.91756007,0.00011015,2]
[346865457,1735333854808,-500.0,0.00011015,2]
[346865458,1735333854817,-500.0,0.00011015,2]
[346865459,1735333854826,-500.0,0.00011015,2]
[346865460,1735333854837,-500.0,0.00011015,2]
[346865461,1735333854846,-349.67738106,0.00011015,2]
[346865462,1735333854855,-574.12,0.00011015,2]
[346865463,1735333854864,-500.0,0.00011015,2]
[346865464,1735333854873,-1503.88,0.00011015,2]
[346865465,1735333854883,-500.0,0.00011015,2]
[346865466,1735333854892,-635.1,0.00011015,2]
[346865467,1735333854901,-500.0,0.00011015,2]
[346865468,1735333854911,-821.29,0.00011015,2]
[346865469,1735333854920,-545.5,0.00011015,2]
[346865470,1735333854929,-500.0,0.00011015,2]
[346865471,1735333854938,-2723.76,0.00011015,2]
[346865472,1735333854947,-784.68,0.00011015,2]
[346865473,1735333854956,-1428.35,0.00011015,2]
[346865474,1735333854965,-563.83457777,0.00011015,2]
[346865475,1735333854974,-1619.97,0.00011015,2]
[346865476,1735333854984,-1608.63,0.00011015,2]
[346865477,1735333854993,-785.93,0.00011015,2]
[346865478,1735333855002,-396.92199488,0.00011015,2]
[346865479,1735333855011,-589.43,0.00011015,2]
[346865480,1735333855020,-500.0,0.00011015,2]
[346865482,1735333855029,-1275.52,0.00011015,2]
[346865483,1735333855038,-585.96,0.00011015,2]
[346865484,1735333855048,-687.4,0.00011015,2]
[346865485,1735333855057,-622.11,0.00011015,2]
[346865486,1735333855066,-500.0,0.00011015,2]
[346865487,1735333855075,-2903.77,0.00011015,2]
[346865488,1735333855086,-1157.58,0.00011015,2]
[346865489,1735333855095,-826.18,0.00011015,2]
[346865490,1735333855104,-532.37,0.00011015,2]
[346865491,1735333855114,-1603.81,0.00011015,2]
[346865492,1735333855125,-729.46,0.00011015,2]
[346865493,1735333855135,-500.0,0.00011015,2]
[346865494,1735333855145,-533.46,0.00011015,2]
[346865495,1735333855155,-729.36,0.00011015,2]
[346865496,1735333855165,-642.37,0.00011015,2]
[346865497,1735333855175,-1977.1,0.00011015,2]